fUSD/lending_fUSD_20250515
["ID","MTS","AMOUNT","RATE_DAILY","PERIOD"]
[361161132,1747312296542,-16150.90339226,0.000154,2]
[361161133,1747312296554,-491.10186481,0.000154,2]
[361161134,1747312296565,-469.89,0.0001543,2]
[361161135,1747312296575,-499.13,0.0001543,2]
[361161136,1747312296585,-2415.52,0.0001543,2]
[361161137,1747312296595,-2561.98,0.0001543,2]
[361161138,1747312296605,-400.0,0.00015431,2]
[361161139,1747312296615,-483.79,0.00015431,2]
[361161140,1747312296628,-709.94,0.00015431,2]
[361161141,1747312296639,-494.81,0.00015431,2]
[361161142,1747312296648,-481.22,0.00015431,2]
[361161143,1747312296658,-400.0,0.00015431,2]
[361161144,1747312296669,-419.11,0.00015431,2]
[361161145,1747312296679,-624.18,0.00015431,2]
[361161146,1747312296689,-400.0,0.00015431,2]
[361161147,1747312296698,-620.77,0.00015431,2]
[361161148,1747312296709,-400.0,0.00015431,2]
[361161149,1747312296718,-440.9,0.00015431,2]
[361161150,1747312296728,-1038.52,0.00015431,2]
[361161151,1747312296738,-881.03,0.00015431,2]
[361161152,1747312296747,-501.16,0.00015431,2]
[361161153,1747312296757,-1344.14,0.00015431,2]
[361161154,1747312296767,-451.75,0.00015431,2]
[361161155,1747312296777,-400.0,0.00015431,2]
[361161156,1747312296787,-612.11,0.00015431,2]
[361161157,1747312296797,-462.96,0.00015431,2]
[361161158,1747312296806,-477.75,0.00015431,2]
[361161159,1747312296815,-400.0,0.00015431,2]
[361161160,1747312296825,-439.58,0.00015431,2]
[361161161,1747312296834,-576.82,0.00015431,2]
[361161162,1747312296843,-413.48,0.00015431,2]
[361161163,1747312296853,-546.12,0.00015431,2]
[361161164,1747312296862,-416.69,0.00015431,2]
[361161165,1747312296873,-505.41,0.00015431,2]
[361161166,1747312296882,-400.0,0.00015431,2]
[361161167,1747312296893,-400.0,0.00015431,2]
[361161168,1747312296902,-465.84,0.00015431,2]
[361161169,1747312296912,-1045.24,0.00015431,2]
[361161170,1747312296922,-472.83,0.00015431,2]
[361161171,1747312296933,-400.0,0.00015431,2]
[361161172,1747312296943,-699.13,0.00015431,2]
[361161173,1747312296952,-999.87,0.00015431,2]
[361161174,1747312296963,-1258.7,0.00015431,2]
[361161175,1747312296973,-400.0,0.00015431,2]
[361161176,1747312296984,-563.34,0.00015431,2]
[361161177,1747312296995,-871.71,0.00015431,2]
[361161178,1747312297005,-522.13,0.00015431,2]
[361161179,1747312297015,-569.36,0.00015431,2]
[361161180,1747312297025,-467.55,0.00015431,2]
[361161181,1747312297035,-558.97,0.00015431,2]
[361161182,1747312297046,-995.06,0.00015431,2]
[361161183,1747312297056,-2978.01,0.00015431,2]
[361161184,1747312297067,-961.53,0.00015431,2]
[361161185,1747312297077,-814.79,0.00015431,2]
[361161186,1747312297088,-1150.65,0.00015431,2]
[361161187,1747312297097,-953.55,0.00015431,2]
[361161188,1747312297108,-945.18,0.00015431,2]
[361161189,1747312297117,-605.88,0.00015431,2]
[361161190,1747312297130,-400.0,0.00015431,2]
[361161191,1747312297141,-793.37,0.00015431,2]
[361161192,1747312297151,-400.0,0.00015431,2]
[361161193,1747312297161,-565.3,0.00015431,2]
[361161194,1747312297171,-3659.41,0.00015431,2]
[361161195,1747312297181,-400.0,0.00015431,2]
[361161196,1747312297191,-586.1,0.00015431,2]
[361161197,1747312297201,-1133.62,0.00015431,2]
[361161198,1747312297211,-866.92,0.00015431,2]
[361161199,1747312297221,-400.0,0.00015431,2]
[361161200,1747312297231,-896.17,0.00015431,2]
[361161201,1747312297242,-3422.62,0.00015431,2]
[361161202,1747312297253,-400.0,0.00015431,2]
[361161203,1747312297265,-400.0,0.00015431,2]
[361161204,1747312297275,-1508.16,0.00015431,2]
[361161205,1747312297286,-323.86568436,0.00015431,2]
[361161206,1747312297296,-2309.39,0.00015431,2]
[361161207,1747312297306,-546.0,0.00015431,2]
[361161208,1747312297316,-521.69,0.00015431,2]
[361161209,1747312297327,-982.05,0.00015431,2]
[361161210,1747312297337,-499.46,0.00015431,2]
[361161211,1747312297347,-400.0,0.00015431,2]
[361161212,1747312297357,-2191.97,0.00015431,2]
[361161213,1747312297367,-957.61,0.00015431,2]
[361161214,1747312297380,-722.35,0.00015431,2]
[361161215,1747312297393,-400.0,0.00015431,2]
[361161216,1747312297403,-2080.12,0.00015431,2]
[361161217,1747312297413,-668.17,0.00015431,2]
[361161218,1747312297423,-400.0,0.00015431,2]
[361161219,1747312297432,-400.0,0.00015431,2]
[361161220,1747312297442,-400.0,0.00015431,2]
[361161221,1747312297451,-1597.82,0.00015431,2]
[361161222,1747312297461,-1630.72,0.00015431,2]
[361161223,1747312297471,-400.0,0.00015431,2]
[361161224,1747312297483,-3843.82,0.00015431,2]
[361161225,1747312297493,-598.25,0.00015431,2]
[361161226,1747312297503,-1950.93,0.00015431,2]
[361161227,1747312297512,-457.12,0.00015431,2]
[361161228,1747312297522,-922.32,0.00015431,2]
[361161229,1747312297531,-10611.15,0.00015431,2]
[361161230,1747312297541,-400.0,0.00015431,2]
[361161231,1747312297550,-400.0,0.00015431,2]
[361161232,1747312297560,-1108.85,0.00015431,2]
[361161233,1747312297570,-501.52,0.00015431,2]
[361161234,1747312297579,-541.7,0.00015431,2]
[361161235,1747312297588,-601.85,0.00015431,2]
[361161236,1747312297598,-589.76,0.00015431,2]
[361161237,1747312297609,-29073.02,0.00015431,2]
[361161238,1747312297680,-400.0,0.00015431,2]
[361161239,1747312297691,-3250.93,0.00015431,2]
[361161240,1747312297700,-676.29,0.00015431,2]
[361161241,1747312297709,-530.87,0.00015431,2]
[361161242,1747312297718,-2267.04,0.00015431,2]
[361161243,1747312297728,-420.88,0.00015431,2]
[361161244,1747312297737,-796.59,0.00015431,2]
[361161245,1747312297747,-419.55,0.00015432,2]
[361161246,1747312297757,-400.0,0.00015432,2]
[361161247,1747312297766,-448.46,0.00015432,2]
[361161248,1747312297776,-400.0,0.00015432,2]
[361161249,1747312297786,-400.0,0.00015432,2]
[361161250,1747312297796,-167.41566852,0.00015432,2]
[361161251,1747312297806,-400.0,0.00015432,2]
[361161252,1747312297816,-572.49,0.00015432,2]
[361161253,1747312297825,-400.0,0.00015432,2]
[361161254,1747312297835,-455.44,0.00015432,2]
[361161255,1747312297844,-545.88,0.00015432,2]
[361161256,1747312297853,-400.0,0.00015432,2]
[361161257,1747312297863,-613.99,0.00015432,2]
[361161258,1747312297874,-559.8,0.00015432,2]
[361161259,1747312297884,-7018.63,0.00015432,2]
[361161260,1747312297894,-472.72,0.00015432,2]
[361161261,1747312297903,-1647.57,0.00015432,2]
[361161262,1747312297913,-400.0,0.00015432,2]
[361161263,1747312297923,-582.36,0.00015432,2]
[361161264,1747312297932,-400.0,0.00015432,2]
[361161265,1747312297942,-1273.86,0.00015432,2]
[361161266,1747312297952,-707.6,0.00015432,2]
[361161267,1747312297961,-400.0,0.00015432,2]
[361161268,1747312297971,-847.58,0.00015432,2]
[361161269,1747312297980,-532.14,0.00015432,2]
[361161270,1747312297989,-504.34,0.00015432,2]
[361161271,1747312297999,-539.45,0.00015432,2]
[361161272,1747312298008,-400.0,0.00015432,2]
[361161273,1747312298018,-400.0,0.00015432,2]
[361161274,1747312298027,-672.34,0.00015432,2]
[361161275,1747312298036,-519.52870094,0.00015433,2]
[361161276,1747312298046,-826.96,0.00015516,2]
[361161277,1747312298056,-400.0,0.00015516,2]
[361161278,1747312298065,-1048.33,0.00015516,2]
[361161279,1747312298075,-400.0,0.00015516,2]
[361161280,1747312298084,-400.0,0.00015516,2]
[361161281,1747312298094,-423.63,0.00015516,2]
[361161282,1747312298103,-535.8,0.00015516,2]
[361161283,1747312298112,-1990.2,0.00015516,2]
[361161284,1747312298124,-566.87,0.00015516,2]
[361161285,1747312298135,-5800.0,0.00015548,2]
[361161286,1747312298145,-400.0,0.00015549,2]
[361161287,1747312298154,-572.39,0.00015549,2]
[361161288,1747312298163,-219.23,0.00015549,2]
[361161289,1747312298172,-400.0,0.00015549,2]
[361161290,1747312298182,-418.19533154,0.00015549,2]
[361161291,1747312298191,-475.17,0.00015549,2]
[361161292,1747312298201,-427.86,0.00015549,2]
[361161293,1747312298210,-531.85,0.00015549,2]
[361161294,1747312298223,-400.0,0.00015549,2]
[361161295,1747312298233,-472.87,0.00015549,2]
[361161296,1747312298243,-800.26,0.00015549,2]
[361161297,1747312298253,-500.43826818,0.00015549,2]
[361161298,1747312298262,-527.61,0.00015549,2]
[361161299,1747312298272,-938.56,0.00015549,2]
[361161300,1747312298282,-400.0,0.00015549,2]
[361161301,1747312298291,-542.45,0.00015549,2]
[361161302,1747312298301,-448.35,0.00015549,2]
[361161303,1747312298310,-515.02,0.00015549,2]
[361161304,1747312298320,-920.05,0.00015549,2]
[361161305,1747312298330,-619.27,0.00015549,2]
[361161306,1747312298339,-546.2,0.00015549,2]
[361161307,1747312298349,-400.0,0.00015549,2]
[361161308,1747312298359,-400.87,0.00015549,2]
[361161309,1747312298368,-400.0,0.00015549,2]
[361161310,1747312298384,-457.69,0.00015549,2]
[361161311,1747312298394,-400.0,0.00015549,2]
[361161312,1747312298403,-704.72,0.00015549,2]
[361161313,1747312298413,-450.0,0.00015549,2]
[361161314,1747312298422,-640.67,0.00015549,2]
[361161315,1747312298431,-463.55,0.00015549,2]
[361161316,1747312298440,-475.16,0.00015549,2]
[361161317,1747312298450,-647.93,0.00015549,2]
[361161318,1747312298460,-493.97,0.00015549,2]
[361161319,1747312298470,-408.34,0.00015549,2]
[361161320,1747312298480,-930.04,0.00015549,2]
[361161321,1747312298491,-584.59,0.00015549,2]
[361161322,1747312298501,-508.74,0.00015549,2]
[361161323,1747312298511,-400.0,0.00015549,2]
[361161324,1747312298521,-562.67,0.00015549,2]
[361161325,1747312298531,-587.33,0.00015549,2]
[361161326,1747312298540,-2186.73,0.00015549,2]
[361161327,1747312298549,-480.35,0.00015549,2]
[361161328,1747312298559,-5800.0,0.00015557,2]
[361161329,1747312298569,-5800.0,0.00015565,2]
[361161330,1747312298578,-5800.0,0.00015574,2]
[361161331,1747312298588,-5800.0,0.00015582,2]
[361161332,1747312298597,-5800.0,0.00015591,2]
[361161333,1747312298607,-5800.0,0.00015591,2]
[361161334,1747312298616,-5800.0,0.00015599,2]
[361161335,1747312298630,-5800.0,0.00015599,2]
[361161336,1747312298639,-5800.0,0.00015607,2]
[361161337,1747312298649,-5800.0,0.00015607,2]
[361161338,1747312298660,-1185.0,0.00015609,2]
[361161339,1747312298672,-1185.0,0.00015609,2]
[361161340,1747312298682,-1185.0,0.00015609,2]
[361161341,1747312298691,-1185.0,0.00015609,2]
[361161342,1747312298701,-1185.0,0.00015609,2]
[361161343,1747312298711,-1185.0,0.00015609,2]
[361161344,1747312298720,-1185.0,0.00015609,2]
[361161345,1747312298729,-1185.0,0.00015609,2]
[361161346,1747312298738,-1185.0,0.00015609,2]
[361161347,1747312298748,-1185.0,0.00015609,2]
[361161348,1747312298758,-178.35483354,0.00015609,2]
[361161349,1747312298767,-5800.0,0.00015616,2]
[361161350,1747312298777,-5800.0,0.00015616,2]
[361161351,1747312298786,-969.78325312,0.00015616,2]
[361161352,1747312298796,-400.0,0.00015657,2]
[361161353,1747312298805,-469.89,0.00015704,2]
[361161354,1747312298816,-499.13,0.00015704,2]
[361161355,1747312298825,-2415.52,0.00015704,2]
[361161356,1747312298835,-2561.98,0.00015704,2]
[361161357,1747312298844,-400.0,0.00015705,2]
[361161358,1747312298855,-483.79,0.00015705,2]
[361161359,1747312298864,-709.94,0.00015705,2]
[361161360,1747312298878,-494.81,0.00015705,2]
[361161361,1747312298887,-481.22,0.00015705,2]
[361161362,1747312298898,-453.36526176,0.00015705,2]
[361161363,1747312298907,-419.11,0.00015705,2]
[361161364,1747312298918,-624.18,0.00015705,2]
[361161365,1747312298927,-400.0,0.00015705,2]
[361161366,1747312298937,-620.77,0.00015705,2]
[361161367,1747312298946,-400.0,0.00015705,2]
[361161368,1747312298956,-440.9,0.00015705,2]
[361161369,1747312298966,-1038.52,0.00015705,2]
[361161370,1747312298976,-881.03,0.00015705,2]
[361161371,1747312298985,-501.16,0.00015705,2]
[361161372,1747312298995,-1344.14,0.00015705,2]
[361161373,1747312299004,-451.75,0.00015705,2]
[361161374,1747312299014,-400.0,0.00015705,2]
[361161375,1747312299024,-612.11,0.00015705,2]
[361161376,1747312299035,-462.96,0.00015705,2]
[361161377,1747312299045,-477.75,0.00015705,2]
[361161378,1747312299054,-400.0,0.00015705,2]
[361161379,1747312299064,-439.58,0.00015705,2]
[361161380,1747312299074,-576.82,0.00015705,2]
[361161381,1747312299084,-413.48,0.00015705,2]
[361161382,1747312299093,-546.12,0.00015705,2]
[361161383,1747312299103,-416.69,0.00015705,2]
[361161384,1747312299112,-505.41,0.00015705,2]
[361161385,1747312299124,-400.0,0.00015705,2]
[361161386,1747312299133,-400.0,0.00015705,2]
[361161387,1747312299142,-465.84,0.00015705,2]
[361161388,1747312299153,-1045.24,0.00015705,2]
[361161389,1747312299162,-472.83,0.00015705,2]
[361161390,1747312299171,-400.0,0.00015705,2]
[361161391,1747312299181,-699.13,0.00015705,2]
[361161392,1747312299191,-999.87,0.00015705,2]
[361161393,1747312299200,-1258.7,0.00015705,2]
[361161394,1747312299210,-400.0,0.00015705,2]
[361161395,1747312299220,-563.34,0.00015705,2]
[361161396,1747312299230,-871.71,0.00015705,2]
[361161397,1747312299239,-522.13,0.00015705,2]
[361161398,1747312299248,-569.36,0.00015705,2]
[361161399,1747312299259,-467.55,0.00015705,2]
[361161400,1747312299269,-558.97,0.00015705,2]
[361161401,1747312299279,-995.06,0.00015705,2]
[361161402,1747312299288,-2978.01,0.00015705,2]
[361161403,1747312299298,-961.53,0.00015705,2]
[361161404,1747312299308,-814.79,0.00015705,2]
[361161405,1747312299318,-1150.65,0.00015705,2]
[361161406,1747312299327,-953.55,0.00015705,2]
[361161407,1747312299337,-945.18,0.00015705,2]
[361161408,1747312299346,-605.88,0.00015705,2]
[361161409,1747312299356,-400.0,0.00015705,2]
[361161410,1747312299365,-793.37,0.00015705,2]
[361161411,1747312299377,-400.12083771,0.00015705,2]
[361161412,1747312299386,-565.3,0.00015705,2]
[361161413,1747312299396,-3659.41,0.00015705,2]
[361161414,1747312299405,-400.0,0.00015705,2]
[361161415,1747312299415,-586.1,0.00015705,2]
[361161416,1747312299424,-1133.62,0.00015705,2]
[361161417,1747312299434,-866.92,0.00015705,2]
[361161418,1747312299443,-400.0,0.00015705,2]
[361161419,1747312299452,-896.17,0.00015705,2]
[361161420,1747312299461,-3422.62,0.00015705,2]
[361161421,1747312299471,-400.0,0.00015705,2]
[361161422,1747312299483,-195.78,0.00015705,2]
[361161423,1747312299493,-1508.16,0.00015705,2]
[361161424,1747312299502,-2309.39,0.00015705,2]
[361161425,1747312299512,-546.0,0.00015705,2]
[361161426,1747312299521,-521.69,0.00015705,2]
[361161427,1747312299531,-982.05,0.00015705,2]
[361161428,1747312299542,-499.46,0.00015705,2]
[361161429,1747312299552,-400.0,0.00015705,2]
[361161430,1747312299561,-2191.97,0.00015705,2]
[361161431,1747312299572,-957.61,0.00015705,2]
[361161432,1747312299582,-722.35,0.00015705,2]
[361161433,1747312299591,-375.47082206,0.00015705,2]
[361161434,1747312299601,-2080.12,0.00015705,2]
[361161435,1747312299611,-668.17,0.00015705,2]
[361161436,1747312299622,-400.0,0.00015705,2]
[361161437,1747312299633,-400.0,0.00015705,2]
[361161438,1747312299643,-400.0,0.00015705,2]
[361161439,1747312299653,-1597.82,0.00015705,2]
[361161440,1747312299662,-1630.72,0.00015705,2]
[361161441,1747312299672,-3843.82,0.00015705,2]
[361161442,1747312299682,-598.25,0.00015705,2]
[361161443,1747312299692,-1950.93,0.00015705,2]
[361161444,1747312299701,-457.12,0.00015705,2]
[361161445,1747312299711,-400.0,0.00015705,2]
[361161446,1747312299721,-922.32,0.00015705,2]
[361161447,1747312299731,-10611.15,0.00015705,2]
[361161448,1747312299741,-400.0,0.00015705,2]
[361161449,1747312299750,-400.0,0.00015705,2]
[361161450,1747312299760,-1108.85,0.00015705,2]
[361161451,1747312299770,-501.52,0.00015705,2]
[361161452,1747312299779,-541.7,0.00015705,2]
[361161453,1747312299789,-601.85,0.00015705,2]
[361161454,1747312299799,-589.76,0.00015705,2]
[361161455,1747312299810,-29073.02,0.00015705,2]
[361161456,1747312299820,-398.17,0.00015705,2]
[361161457,1747312299830,-3250.93,0.00015705,2]
[361161458,1747312299840,-676.29,0.00015705,2]
[361161459,1747312299850,-530.87,0.00015705,2]
[361161460,1747312299860,-2267.04,0.00015705,2]
[361161461,1747312299870,-420.88,0.00015705,2]
[361161462,1747312299885,-796.59,0.00015705,2]
[361161463,1747312299895,-419.55,0.00015706,2]
[361161464,1747312299905,-400.0,0.00015706,2]
[361161465,1747312299915,-448.46,0.00015706,2]
[361161466,1747312299925,-400.0,0.00015706,2]
[361161467,1747312299935,-400.0,0.00015706,2]
[361161468,1747312299946,-400.0,0.00015706,2]
[361161469,1747312299956,-572.49,0.00015706,2]
[361161470,1747312299967,-400.0,0.00015706,2]
[361161471,1747312299977,-455.44,0.00015706,2]
[361161472,1747312299987,-545.88,0.00015706,2]
[361161473,1747312299998,-400.0,0.00015706,2]
[361161474,1747312300008,-613.99,0.00015706,2]
[361161475,1747312300019,-559.8,0.00015706,2]
[361161476,1747312300030,-7018.63,0.00015706,2]
[361161477,1747312300040,-472.72,0.00015706,2]
[361161478,1747312300050,-1647.57,0.00015706,2]
[361161479,1747312300060,-400.0,0.00015706,2]
[361161480,1747312300070,-582.36,0.00015706,2]
[361161481,1747312300080,-356.61503705,0.00015706,2]
[361161482,1747312300090,-1273.86,0.00015706,2]
[361161483,1747312300100,-707.6,0.00015706,2]
[361161484,1747312300111,-400.0,0.00015706,2]
[361161485,1747312300121,-847.58,0.00015706,2]
[361161486,1747312300134,-532.14,0.00015706,2]
[361161487,1747312300144,-504.34,0.00015706,2]
[361161488,1747312300154,-539.45,0.00015706,2]
[361161489,1747312300164,-400.0,0.00015706,2]
[361161490,1747312300175,-389.57807798,0.00015706,2]
[361161491,1747312300185,-672.34,0.00015706,2]
[361161492,1747312300195,-150.2,0.0001573,2]
[361161493,1747312300205,-1075.0,0.00015757,2]
[361161494,1747312300215,-664.24,0.00015766,2]
[361161495,1747312300226,-826.96,0.0001579,2]
[361161496,1747312300236,-400.0,0.0001579,2]
[361161497,1747312300246,-1048.33,0.0001579,2]
[361161498,1747312300257,-400.0,0.0001579,2]
[361161499,1747312300267,-400.0,0.0001579,2]
[361161500,1747312300277,-423.63,0.0001579,2]
[361161501,1747312300287,-535.8,0.0001579,2]
[361161502,1747312300297,-1990.2,0.0001579,2]
[361161503,1747312300306,-566.87,0.0001579,2]
[361161504,1747312300316,-400.0,0.00015823,2]
[361161505,1747312300326,-572.39,0.00015823,2]
[361161506,1747312300336,-400.0,0.00015823,2]
[361161507,1747312300346,-475.17,0.00015823,2]
[361161508,1747312300355,-427.86,0.00015823,2]
[361161509,1747312300365,-531.85,0.00015823,2]
[361161510,1747312300378,-400.0,0.00015823,2]
[361161511,1747312300388,-472.87,0.00015823,2]
[361161512,1747312300398,-800.26,0.00015823,2]
[361161513,1747312300408,-527.61,0.00015823,2]
[361161514,1747312300417,-938.56,0.00015823,2]
[361161515,1747312300427,-400.0,0.00015823,2]
[361161516,1747312300437,-542.45,0.00015823,2]
[361161517,1747312300446,-448.35,0.00015823,2]
[361161518,1747312300456,-515.02,0.00015823,2]
[361161519,1747312300466,-920.05,0.00015823,2]
[361161520,1747312300476,-619.27,0.00015823,2]
[361161521,1747312300489,-546.2,0.00015823,2]
[361161522,1747312300499,-400.0,0.00015823,2]
[361161523,1747312300509,-400.87,0.00015823,2]
[361161524,1747312300519,-400.0,0.00015823,2]
[361161525,1747312300530,-457.69,0.00015823,2]
[361161526,1747312300540,-400.0,0.00015823,2]
[361161527,1747312300550,-704.72,0.00015823,2]
[361161528,1747312300560,-450.0,0.00015823,2]
[361161529,1747312300570,-640.67,0.00015823,2]
[361161530,1747312300580,-463.55,0.00015823,2]
[361161531,1747312300590,-475.16,0.00015823,2]
[361161532,1747312300600,-647.93,0.00015823,2]
[361161533,1747312300609,-493.97,0.00015823,2]
[361161534,1747312300619,-408.34,0.00015823,2]
[361161535,1747312300634,-930.04,0.00015823,2]
[361161536,1747312300644,-584.59,0.00015823,2]
[361161537,1747312300654,-508.74,0.00015823,2]
[361161538,1747312300665,-400.0,0.00015823,2]
[361161539,1747312300675,-562.67,0.00015823,2]
[361161540,1747312300685,-587.33,0.00015823,2]
[361161541,1747312300695,-2186.73,0.00015823,2]
[361161542,1747312300705,-480.35,0.00015823,2]
[361161543,1747312300716,-150.0,0.0001589,2]
[361161544,1747312300726,-1549.51228385,0.0001589,2]
[361161545,1747312300735,-161.76449247,0.0001589,2]
[361161546,1747312300745,-2500.0,0.0001589,2]
[361161547,1747312300755,-502.19394116,0.0001589,2]
[361161548,1747312300766,-195.08271047,0.0001589,2]
[361161549,1747312300776,-1600.15738668,0.0001589,2]
[361161550,1747312300786,-1549.05573301,0.0001589,2]
[361161551,1747312300796,-2500.0,0.0001589,2]
[361161552,1747312300806,-2500.0,0.0001589,2]
[361161553,1747312300816,-2500.0,0.0001589,2]
[361161554,1747312300827,-1813.16667423,0.0001589,2]
[361161555,1747312300838,-500.0,0.000159,5]
[361161556,1747312300849,-441.52,0.00015917,2]
[361161557,1747312300859,-400.0,0.00015931,2]
[361161558,1747312300869,-163.54,0.00015953,2]
[361161559,1747312300882,-436.25765087,0.00015956,2]
[361161560,1747312300892,-469.89,0.00015978,2]
[361161561,1747312300902,-499.13,0.00015978,2]
[361161562,1747312300912,-2415.52,0.00015978,2]
[361161563,1747312300922,-2561.98,0.00015978,2]
[361161564,1747312300932,-449.08191078,0.00015979,2]
[361161565,1747312300942,-483.79,0.00015979,2]
[361161566,1747312300952,-709.94,0.00015979,2]
[361161567,1747312300962,-494.81,0.00015979,2]
[361161568,1747312300972,-481.22,0.00015979,2]
[361161569,1747312300982,-419.11,0.00015979,2]
[361161570,1747312300992,-624.18,0.00015979,2]
[361161571,1747312301002,-400.0,0.00015979,2]
[361161572,1747312301012,-620.77,0.00015979,2]
[361161573,1747312301022,-400.0,0.00015979,2]
[361161574,1747312301032,-440.9,0.00015979,2]
[361161575,1747312301041,-1038.52,0.00015979,2]
[361161576,1747312301052,-881.03,0.00015979,2]
[361161577,1747312301062,-501.16,0.00015979,2]
[361161578,1747312301071,-1344.14,0.00015979,2]
[361161579,1747312301081,-451.75,0.00015979,2]
[361161580,1747312301090,-400.0,0.00015979,2]
[361161581,1747312301100,-612.11,0.00015979,2]
[361161582,1747312301110,-462.96,0.00015979,2]
[361161583,1747312301119,-477.75,0.00015979,2]
[361161584,1747312301132,-400.0,0.00015979,2]
[361161585,1747312301142,-439.58,0.00015979,2]
[361161586,1747312301151,-576.82,0.00015979,2]
[361161587,1747312301161,-413.48,0.00015979,2]
[361161588,1747312301171,-546.12,0.00015979,2]
[361161589,1747312301181,-416.69,0.00015979,2]
[361161590,1747312301193,-505.41,0.00015979,2]
[361161591,1747312301204,-400.0,0.00015979,2]
[361161592,1747312301215,-400.0,0.00015979,2]
[361161593,1747312301224,-465.84,0.00015979,2]
[361161594,1747312301235,-1045.24,0.00015979,2]
[361161595,1747312301245,-472.83,0.00015979,2]
[361161596,1747312301255,-400.0,0.00015979,2]
[361161597,1747312301265,-699.13,0.00015979,2]
[361161598,1747312301274,-999.87,0.00015979,2]
[361161599,1747312301285,-1258.7,0.00015979,2]
[361161600,1747312301295,-400.0,0.00015979,2]
[361161601,1747312301305,-563.34,0.00015979,2]
[361161602,1747312301315,-871.71,0.00015979,2]
[361161603,1747312301325,-522.13,0.00015979,2]
[361161604,1747312301334,-569.36,0.00015979,2]
[361161605,1747312301344,-467.55,0.00015979,2]
[361161606,1747312301354,-558.97,0.00015979,2]
[361161607,1747312301364,-995.06,0.00015979,2]
[361161608,1747312301377,-2978.01,0.00015979,2]
[361161609,1747312301387,-961.53,0.00015979,2]
[361161610,1747312301398,-814.79,0.00015979,2]
[361161611,1747312301407,-1150.65,0.00015979,2]
[361161612,1747312301417,-953.55,0.00015979,2]
[361161613,1747312301427,-945.18,0.00015979,2]
[361161614,1747312301438,-605.88,0.00015979,2]
[361161615,1747312301449,-400.0,0.00015979,2]
[361161616,1747312301458,-793.37,0.00015979,2]
[361161617,1747312301468,-565.3,0.00015979,2]
[361161618,1747312301484,-3659.41,0.00015979,2]
[361161619,1747312301494,-400.0,0.00015979,2]
[361161620,1747312301504,-586.1,0.00015979,2]
[361161621,1747312301514,-1133.62,0.00015979,2]
[361161622,1747312301523,-866.92,0.00015979,2]
[361161623,1747312301533,-400.0,0.00015979,2]
[361161624,1747312301543,-896.17,0.00015979,2]
[361161625,1747312301552,-3422.62,0.00015979,2]
[361161626,1747312301563,-400.0,0.00015979,2]
[361161627,1747312301572,-1508.16,0.00015979,2]
[361161628,1747312301582,-2309.39,0.00015979,2]
[361161629,1747312301591,-546.0,0.00015979,2]
[361161630,1747312301601,-521.69,0.00015979,2]
[361161631,1747312301611,-982.05,0.00015979,2]